Cogmind - Beta 11 @@@ ROGUE MODE // 2022.03.23 @ 00:12:24 Player: apollo Result: Destroyed by G-34 Mercenary with Small Laser Performance ------------- Evolutions (1) 500 Regions Visited (3) 600 Robots Destroyed (26) 130 Value Destroyed (656) 656 Prototype IDs (0) 0 Alien Tech Used (0) 0 Bonus (16) 16 TOTAL SCORE: 1902 Bonus ------- High Alert Combat Kills 16 Cogmind --------- Core Integrity 0/400 Matter 48/300 Energy 100/100 System Corruption 0% Temperature Cool (6) Movement Core (2400) Ox47 Location -9/Materials Parts ------- > --- POWER (1) -------- (None) > --- PROPULSION (2) --- (None) > --- UTILITY (3) ------ Cargo Storage Unit > --- WEAPON (3) ------- Hammer > --- INVENTORY (30) --- Light Treads Light Treads Aluminum Leg Aluminum Leg Aluminum Leg Aluminum Leg Aluminum Leg Wheel Wheel Improved Heat Sink Cargo Storage Unit Structural Scanner EM Pulse Gun EM Pulse Gun EM Pulse Gun Light Assault Rifle Light Cannon Light Cannon Peak State ------------ > --- POWER ------------ Light Ion Engine > --- PROPULSION ------- Wheel Wheel > --- UTILITY ---------- Cargo Storage Unit > --- WEAPON ----------- Assault Rifle Autogun Grenade Launcher > --- INVENTORY -------- Ion Engine Light Treads Light Treads Aluminum Leg Aluminum Leg Aluminum Leg Aluminum Leg Aluminum Leg Wheel Wheel Improved Heat Sink Cargo Storage Unit Structural Scanner EM Pulse Gun EM Pulse Gun EM Pulse Gun Light Assault Rifle Light Cannon Light Cannon Hammer [Rating: 11] Favorites ----------- Power Light Ion Engine Engine Light Ion Engine Propulsion Wheel Treads Light Treads Leg Aluminum Leg Wheel Wheel Utility Cargo Storage Unit Storage Cargo Storage Unit Weapon Grenade Launcher Energy Gun EM Pulse Gun Ballistic Gun Light Assault Rifle Ballistic Cannon Light Cannon Launcher Grenade Launcher Impact Weapon Hammer Build | -11 -10 -10 -9 ------- Run | Scr Mat Min Mat Slots Evolved 2 | . . . 2 Power . | . . . . Propulsion . | . . . . Utility 1 | . . . 1 Weapon 1 | . . . 1 Parts Attached 32 | 6 17 7 2 Power 3 | 1 1 1 . Engine 3 | 1 1 1 . Core . | . . . . Reactor . | . . . . Propulsion 15 | 2 9 4 . Treads 2 | . 2 . . Leg 5 | . 3 2 . Wheel 8 | 2 4 2 . Hover . | . . . . Flight . | . . . . Utility 2 | 1 1 . . Device . | . . . . Storage 2 | 1 1 . . Processor . | . . . . Hackware . | . . . . Protection . | . . . . Artifact . | . . . . Weapon 12 | 2 6 2 2 Energy Gun 1 | . 1 . . Energy Cannon . | . . . . Ballistic Gun 6 | 2 1 2 1 Ballistic Cannon 2 | . 2 . . Launcher 2 | . 2 . . Special Weapon . | . . . . Impact Weapon 1 | . . . 1 Slashing Weapon . | . . . . Piercing Weapon . | . . . . Special Melee Weapon . | . . . . Unidentified Prototypes . | . . . . Parts Lost 6 | . 2 . 4 Power 2 | . 1 . 1 Propulsion 2 | . . . 2 Utility . | . . . . Weapon 2 | . 1 . 1 Highest Loss Streak 4 | . 1 . 4 To Critical Strikes . | . . . . Average Slot Usage (%) 76 | . 80 78 56 Engine 8 | . 9 7 6 Treads 2 | . 4 . . Leg 8 | . 7 12 . Wheel 15 | . 15 15 15 Storage 13 | . 14 14 11 Energy Gun 1 | . 2 . . Ballistic Gun 12 | . 10 14 14 Ballistic Cannon 3 | . 6 . . Launcher 9 | . 7 14 6 Naked Turns . | . . . . Heaviest Build 151 | 11 149 148 151 Greatest Support 40 | 26 40 20 20 Greatest Overweight (x) 47 | . 14 7 47 Average Overweight (x) 5 | . 5 7 8 Largest Inventory Capacity 30 | 8 30 30 30 Average Capacity 28 | 7 28 30 30 Most Carried 24 | 4 23 24 21 Average Carried 17 | 2 15 21 20 Final Capacity 30 | 8 30 30 30 Final Carried 21 | 4 20 21 19 Class Distribution -------------------- 89% | Hauler-Mutant 6% | Mutant 4% | Hauler-Bomber Dominant Class ---------------- Hauler-Mutant | -10/Materials Hauler-Mutant | -10/Mines Hauler-Mutant | -9/Materials Resources | -11 -10 -10 -9 ----------- Run | Scr Mat Min Mat Matter Collected 722 | 236 312 42 132 Remotely . | . . . . Salvage Created 515 | . 319 56 140 Parts 44 | . 33 2 9 Haulers Intercepted . | . . . . Recyclers Shooed 2 | . 1 . 1 Parts Field Recycled . | . . . . Retrieved Matter . | . . . . Parts Self-Destructed . | . . . . Prevented . | . . . . Kills | -11 -10 -10 -9 ------- Run | Scr Mat Min Mat Combat Hostiles Destroyed 20 | . 12 2 6 Guns 3 | . 1 . 2 Cannons 4 | . 4 . . AOE 12 | . 7 2 3 Classes Destroyed 7 | . 5 . 2 Worker 1 | . 1 . . Builder 4 | . 3 . 1 Watcher 1 | . 1 . . Swarmer 6 | . 3 . 3 Grunt 12 | . 9 2 1 Duelist 1 | . . . 1 Sentry 1 | . . . 1 Best Kill Streak 5 | . 5 2 4 Combat Bots Only 3 | . 3 2 3 Max Kills in Single Turn 2 | . 2 1 2 Gunslinging . | . . . . Exploded 2 | . 2 1 1 Melee . | . . . . Uniques/NPCs Destroyed . | . . . . Combat | -11 -10 -10 -9 -------- Run | Scr Mat Min Mat Damage Taken 1445 | . 576 119 750 Core 552 | . 130 18 404 Absorbed by Shields . | . . . . Core Remaining (%) 70 | 100 . 40 . Volleys Fired 60 | . 42 4 14 Largest 3 | . 2 2 3 Hottest 73 | . 70 50 73 Shots Fired 120 | . 83 8 29 Gun 69 | . 42 4 23 Cannon 22 | . 22 . . Launcher 29 | . 19 4 6 Special . | . . . . Kinetic 80 | . 53 4 23 Thermal . | . . . . Explosive 29 | . 19 4 6 Electromagnetic 11 | . 11 . . Robot Hit Streak 9 | . 7 8 9 Robot Miss Streak 4 | . 2 . 4 Penetration Max . | . . . . Secondary Targets . | . . . . Shots Hit Robots 59 | . 37 4 18 Core Hits 45 | . 28 6 11 Critical Kills . | . . . . Critical Parts Destroyed 2 | . . . 2 Critical Strikes 3 | . . . 3 Destroy 1 | . . . 1 Smash 2 | . . . 2 Melee Attacks 4 | . . . 4 Impact 4 | . . . 4 Slashing . | . . . . Piercing . | . . . . Sneak Attacks . | . . . . Combat Hostiles . | . . . . Follow-up Attacks . | . . . . Damage Inflicted 2004 | . 1268 188 548 Guns 326 | . 139 15 172 Cannons 251 | . 251 . . Explosions 1349 | . 875 173 301 Melee 70 | . . . 70 Ramming 8 | . 3 . 5 Kinetic 538 | . 351 15 172 Thermal . | . . . . Explosive 1349 | . 875 173 301 Electromagnetic 39 | . 39 . . Impact 70 | . . . 70 Slashing . | . . . . Piercing . | . . . . Highest Corruption . | . . . . Average Corruption . | . . . . Corruption Purged . | . . . . Corruption Blocked . | . . . . Overload Shots . | . . . . Overflow Damage 37 | . 18 . 19 Projectiles . | . . . . Explosions 18 | . 18 . . Melee 19 | . . . 19 Knockbacks 4 | . 4 . . Impact . | . . . . Kinetic 4 | . 4 . . Secondary . | . . . . Self-Inflicted Damage 65 | . 38 23 4 Shots 4 | . 2 1 1 Rammed 3 | . 1 . 2 Targets Rammed 3 | . 1 . 2 Kicked . | . . . . Crushed . | . . . . Highest Temperature 63 | . 63 . 9 Average Temperature 13 | . 15 . 4 Received Heat Transfer 354 | . 270 54 30 Siege Activations . | . . . . Robots Corrupted . | . . . . Combat Hostiles . | . . . . Parts Fried . | . . . . Impact Corruptions 2 | . . . 2 Robots Melted . | . . . . Combat Hostiles . | . . . . Parts Melted . | . . . . Heat Transferred . | . . . . Parts Sabotaged . | . . . . Parts Stolen . | . . . . Parts Stripped . | . . . . Power Chain Reactions . | . . . . Missiles Intercepted . | . . . . Alert | -11 -10 -10 -9 ------- Run | Scr Mat Min Mat Peak Influence 425 | . 425 213 261 Initial 109 | . . 109 4 Average 225 | . 292 154 141 Maximum Alert Level 2 | . 2 1 1 Low Security (%) 23 | 100 9 29 56 Level 1 68 | . 77 70 43 Level 2 7 | . 13 . . Level 3 . | . . . . Level 4 . | . . . . Level 5 . | . . . . High Security . | . . . . Max Security . | . . . . Squads Dispatched 4 | . 3 . 1 Investigation 1 | . 1 . . Extermination . | . . . . Reinforcement 3 | . 2 . 1 Assault . | . . . . Garrison . | . . . . Intercept . | . . . . Searches Triggered . | . . . . Construction Impeded 1 | . . . 1 Haulers Reinforced . | . . . . Active Scanning Responses . | . . . . Cargo Convoy Interrupts . | . . . . Stealth | -11 -10 -10 -9 --------- Run | Scr Mat Min Mat Distress Signals 1 | . 1 . . Communications Jammed . | . . . . Distress Signals . | . . . . Times Spotted 32 | . 22 2 8 Peak Tracking Total 4 | . 4 2 3 Tactical Retreats 1 | . 1 . . Traps | -11 -10 -10 -9 ------- Run | Scr Mat Min Mat Traps Triggered 1 | . 1 . . Indirectly . | . . . . Trap Hack Attempts . | . . . . Triggered . | . . . . Disarmed . | . . . . Reprogrammed . | . . . . Reused . | . . . . Traps Extracted . | . . . . Installed . | . . . . Triggered . | . . . . Machines | -11 -10 -10 -9 ---------- Run | Scr Mat Min Mat Machines Disabled 2 | . 1 1 . Max in Single Turn 1 | . 1 1 . Machines Sabotaged . | . . . . Garrisons Compromised . | . . . . Overloaded Fab Kills . | . . . . Hacking | -11 -10 -10 -9 --------- Run | Scr Mat Min Mat Machines Accessed 1 | . 1 . . Terminals 1 | . 1 . . Fabricators . | . . . . Repair Stations . | . . . . Recycling Units . | . . . . Scanalyzers . | . . . . Garrison Access . | . . . . Total Hacks 1 | . 1 . . Successful 1 | . 1 . . Failed . | . . . . Catastrophic . | . . . . Database Lockouts . | . . . . Manual . | . . . . Terminals 1 | . 1 . . Fabricators . | . . . . Repair Stations . | . . . . Recycling Units . | . . . . Scanalyzers . | . . . . Garrison Access . | . . . . Terminal Hacks 1 | . 1 . . Zone Layout 1 | . 1 . . Fabricator Hacks . | . . . . Repair Station Hacks . | . . . . Recycling Unit Hacks . | . . . . Scanalyzer . | . . . . Garrison Access Hacks . | . . . . Unauthorized Hacks . | . . . . Terminals . | . . . . Fabricators . | . . . . Repair Stations . | . . . . Recycling Units . | . . . . Scanalyzers . | . . . . Garrison Access . | . . . . Data Cores Recovered . | . . . . Used . | . . . . Hacking Detections 1 | . 1 . . Full Trace Events . | . . . . Feedback Events . | . . . . Feedback Blocked . | . . . . Robot Schematics Acquired . | . . . . Robots Built . | . . . . Authchips . | . . . . Time . | . . . . Total Robot Build Rating . | . . . . Part Schematics Acquired . | . . . . Parts Built . | . . . . Authchips . | . . . . Time . | . . . . Total Part Build Rating . | . . . . Parts Repaired . | . . . . Time . | . . . . Parts Recycled . | . . . . Recycled Matter . | . . . . Retrieved Matter . | . . . . Retrieved Components . | . . . . Parts Scanalyzed . | . . . . Part Schematics Acquired . | . . . . Parts Damaged . | . . . . Bothacking | -11 -10 -10 -9 ------------ Run | Scr Mat Min Mat Used RIF Installer . | . . . . Robots Hacked . | . . . . Non-combat . | . . . . Combat . | . . . . Robot Hacks Applied . | . . . . Relay Couplers Released . | . . . . Fabnet Peak Effective % . | . . . . Robots Rewired . | . . . . Allies Hacked . | . . . . Hacks Repelled . | . . . . Allies | -11 -10 -10 -9 -------- Run | Scr Mat Min Mat Total Allies . | . . . . Largest Group . | . . . . Highest-Rated Group . | . . . . Highest-Rated Ally . | . . . . Total Orders . | . . . . Ally Attacks . | . . . . Total Damage . | . . . . Kills . | . . . . Allies Corrupted . | . . . . Allies Melted . | . . . . Intel | -11 -10 -10 -9 ------- Run | Scr Mat Min Mat Robot Analysis Total . | . . . . Derelict Logs Recovered 2 | . . 2 . Drone Launches . | . . . . Drone Recoveries . | . . . . Exploration | -11 -10 -10 -9 ------------- Run | Scr Mat Min Mat Turns Passed 1840 | 59 1023 553 205 Spaces Moved 643 | 45 335 200 63 Core 2 | 1 . . 1 Treads 39 | . 39 . . Legs 82 | . 44 38 . Wheels 520 | 44 252 162 62 Hover . | . . . . Flight . | . . . . Fastest Speed 50 | 50 90 185 185 Average Speed 244 | 90 255 265 231 Slowest Speed 2400 | 100 1100 610 2400 Overloaded Moves . | . . . . Propulsion Burnouts . | . . . . Robots Hopped . | . . . . Cave-ins Triggered . | . . . . Exploration Rate (%) 30 | 3 58 52 10 Regions Visited 3 Branch Regions 1 Pre-discovered Areas 1 | . . 1 . Known Exits Taken . | . . . . Unknown Exits Taken 3 | 1 1 1 . Scrap Searched . | . . . . Spaces Dug 16 | . 6 10 . Terrain Destroyed 177 | . 101 35 41 Melee . | . . . . Projectile . | . . . . AOE 177 | . 101 35 41 Terrain Rammed . | . . . . Walls Destroyed . | . . . . Machines Disabled . | . . . . Actions | -11 -10 -10 -9 --------- Run | Scr Mat Min Mat Total 799 | 60 434 215 90 Wait 13 | 6 6 1 . Move 640 | 44 334 199 63 Hop . | . . . . Pick Up 24 | 4 18 . 2 Fast Attach 8 | 6 1 . 1 Attach 17 | . 12 4 1 Detach 13 | . 10 3 . Swap 7 | . 4 3 . Drop 10 | . 6 1 3 Fire 60 | . 42 4 14 Melee 4 | . . . 4 Ram 3 | . 1 . 2 Kick . | . . . . Crush . | . . . . Escape Stasis . | . . . . Rewire . | . . . . Trap . | . . . . Miscellaneous . | . . . . Route ------- -11/Scrapyard -10/Materials -10/Mines -9/Materials History --------- Turn | Location | Event 27 | -11/Scrapyard | Discovered new exit (range 15) 60 | -11/Scrapyard | Entered Materials 415 | -10/Materials | Build established: Hauler-Mutant 753 | -10/Materials | Core integrity fell below 50% 986 | -10/Materials | Discovered new exit (range 16) 1083 | -10/Materials | Entered Mines 1288 | -10/Mines | Learned location of Storage (-9) 1391 | -10/Mines | Learned 2 Materials zone layouts 1519 | -10/Mines | Learned Materials garrison access intel 1621 | -10/Mines | Discovered new exit (range 9) 1636 | -10/Mines | Entered Materials 1636 | -9/Materials | Evolved 2 slots: Utility x1, Weapon x1 1807 | -9/Materials | Core integrity fell below 50% 1827 | -9/Materials | Core integrity fell below 20% 1830 | -9/Materials | Lost 4 parts (1p2n1w) 1841 | -9/Materials | Destroyed by G-34 Mercenary with Small Laser Last Messages --------------- 01824_ Acquired Hammer. 01825_ U-05 Engineer builds a Wall. 01826_ Autogun severed. 01826_ L-31 Rogue suffers critical hit (Smash). 01826_ Destroyed Imp. Ion Engine. 01826_ L-31 Rogue system corrupted by crushing effect. 01826_ R-06 Scavenger collects Autogun. 01827_ U-05 Engineer builds a Wall. 01828_ U-05 Engineer lays Concrete. 01829_ L-31 Rogue suffers critical hit (Smash). 01830_ U-05 Engineer lays Concrete. 01833_ U-05 Engineer builds a Wall. 01834_ U-05 Engineer lays Concrete. 01834_ Destroyed Katana. 01834_ L-31 Rogue system corrupted by crushing effect. 01835_ L-31 Rogue system terminally corrupted. 01835_ K-01 Serf collects debris. 01837_ Acquired 29 matter. 01838_ U-05 Engineer builds a Wall. 01840_ K-01 Serf collects debris. Map ----- +----------------------------------------------------+ | ?????????????????????????????????????????????????? | | ?????????????????????????????????????????????? # | | ?????????????????????????????????????????????? # | | ?????????????????????????????????????????????? # | | ?????????????????????????????????????????????? # | | ?????????????????????????????????????????????? # | | ?????????????????????????????????????????????? # | | ?????????????????????????????????????????????? + | | ?????????????????????????????????????????????? # | | ???????? ?????????????? ?????????????????????? # | | ???????? ?????????????? #? ??????????????????? # | | ???????? ?????????????# #? ??????????????????? # | | ???????? ?????????????# #? "???#?????????????? # | | ???????? ?????????????# #? """ #?????????????? # | | ???????# ?????????????# #? """ #?????????????? | | ???????# ??????????#### ## #?????????????? # | | ???????# #????????? # #??????????????#+## | | ???????# #?????????? + #?????????????? | | ???????# #??????????? g u# ""#?????????????? | | ???????# #???????????#g # T"#?????????????? | | ######## #????######## # ""#?????????????? | | # #???## ## # # # ###???????? | | """" # ############# ####### #???????? | | ""S"" # u [ * #???????? | | "" "" + k % #???????? | | # t * !u @ #????????#### | | # ## #####+########## #???????????? | | # ###! # # ### #???????????? | | # #?# |# """ # #????????????????? | | ######## #?# # """ # """ #????????????????? | | ???# #?# # """ # """ +????????????????? | | ???# #?# # # """ #????????????????? | | ???# #?# # """ # #????????????????? | | ???# ##?# # """ # """?#????????????????? | | ???#! !#??# # """ #? """??????????????????? | | ???#! !#??# # ? #? ?"???????????????????? | | ???##!!!!##??# ######?###? ????????????????????? | | ????######???# #??????????##????????????????????? | | ?????????????# #????????????????????????????????? | | ?????????????# #????????????????????????????????? | | ?????????????? ?????????????????????????????????? | | ?????????????? ?????????????????????????????????? | | ?????????????? ?????????????????????????????????? | | ?????????????????????????????????????????????????? | | ?????????????????????????????????????????????????? | | ?????????????????????????????????????????????????? | | ?????????????????????????????????????????????????? | | ?????????????????????????????????????????????????? | | ?????????????????????????????????????????????????? | | ?????????????????????????????????????????????????? | +----------------------------------------------------+ Best States ------------- Heat Dissipation 28 Energy Generation 10 Energy Capacity 125 Matter Stores 276 Matter Capacity 300 Sight Range 16 Terrain Scan Density 10 Evasion (%) 42 Recoil Reduction 2 Item Schematics ----------------- None Robot Schematics ------------------ None Fabricated ------------ Nothing Alien Tech Used ----------------- None Achievements -------------- Tank Challenges ------------ None Game ------ Seed LargeMachineInterrupter Manual? 0 Play Time 00:33:22 Cumulative 2.8 hours Start 2022.03.22 @ 23:27:02 End 2022.03.23 @ 00:12:24 Sessions 1 Manual Loads 0 Difficulty Rogue Special Mode None Game No. 7 Rogue 7 Adventurer 0 Explorer 0 Win Type - Total 0 Types 0/0/0/0/0/0/0/0/0 Lore% 2 Gallery% 4 Achievement% 3 Wizard Run 0 Options --------- ASCII 0 Keyboard 1 Movement Numpad Keybinds 0 Fullscreen 2 Font 12/Terminus Map View 83x54 Tactical HUD 1 Map Filters NONE Filters NONE Steam 1 RUN: 6c0444a3-2d54-4b27-ad17-532a72864470